fUSD/lending_fUSD_20240831
["ID","MTS","AMOUNT","RATE_DAILY","PERIOD"]
[336752792,1725098026221,500.0,0.00038356,120]
[336752793,1725098026525,500.0,0.00038904,120]
[336752794,1725098026839,500.0,0.00039452,120]
[336752795,1725098027116,500.0,0.0004,120]
[336752796,1725098027388,500.0,0.00040547,120]
[336752797,1725098027660,500.0,0.00041095,120]
[336752798,1725098027959,500.0,0.00041643,120]
[336752799,1725098028230,500.0,0.00042191,120]
[336752800,1725098028487,424.26607033,0.00042739,120]
[336752801,1725098034535,161.98,0.00044009,120]
[336752802,1725098034886,161.98,0.00050858,120]
[336752803,1725098045922,500.0,0.00038356,120]
[336752804,1725098047029,403.16952635,0.00038904,120]
[336752805,1725098092276,500.0,0.00038356,120]
[336752806,1725098092625,500.0,0.00038904,120]
[336752807,1725098092919,500.0,0.00039452,120]
[336752808,1725098093195,168.9157239,0.0004,120]
[336752810,1725098098969,158.33,0.00010959,2]
[336752811,1725098100237,500.0,0.00038356,120]
[336752812,1725098100531,500.0,0.00038904,120]
[336752813,1725098100812,153.33783628,0.00039452,120]
[336752814,1725098101465,315000.0,0.000547,120]
[336752815,1725098103058,1000.0,0.00054795,40]
[336752816,1725098103214,25000.0,0.000423,120]
[336752818,1725098600701,500.3190557,0.00024,120]
[336752820,1725098769592,168.86,0.00010959,2]
[336752825,1725099031901,-250.0,0.00014,2]
[336752826,1725099031912,-287.81452159,0.000159,2]
[336752827,1725099031977,-270.54903608,0.000159,2]
[336752830,1725099038032,-1107.31175698,0.000159,2]
[336752831,1725099038042,-300.0,0.00016,2]
[336752832,1725099038053,-350.0,0.00018,2]
[336752833,1725099038063,-12510.5559,0.000181,2]
[336752834,1725099038072,-980.0,0.000182,2]
[336752835,1725099038083,-400.0,0.0002,2]
[336752836,1725099038092,-150.39,0.0002006,2]
[336752837,1725099038101,-499.99,0.0002062,2]
[336752838,1725099038113,-516.96,0.00020997,2]
[336752839,1725099038122,-1003.24,0.00021,2]
[336752840,1725099038132,-287.189953,0.00021,2]
[336752841,1725099038142,-450.0,0.00022,2]
[336752842,1725099038151,-1003.24,0.00022225,2]
[336752843,1725099038161,-150.15,0.0002276,2]
[336752844,1725099038170,-607.51,0.00022784,2]
[336752845,1725099038181,-501.81,0.00022808,2]
[336752846,1725099038190,-250.0,0.00022809,2]
[336752847,1725099038199,-724.8,0.00022835,2]
[336752848,1725099038208,-200.0,0.00022868,2]
[336752849,1725099038217,-958.44,0.00022929,2]
[336752850,1725099038226,-2751.0,0.00022969,2]
[336752852,1725099038236,-200.0,0.00022987,2]
[336752854,1725099038246,-500.0,0.00023,11]
[336752855,1725099038255,-500.0,0.00023,11]
[336752857,1725099038264,-150.0,0.00023,2]
[336752859,1725099038273,-250.0,0.00023007,2]
[336752860,1725099038282,-161.65,0.00023057,30]
[336752861,1725099038291,-320.0,0.00023063,2]
[336752862,1725099038300,-155.86,0.00023175,2]
[336752863,1725099038309,-200.0,0.000232,2]
[336752865,1725099038319,-250.0,0.00023213,2]
[336752867,1725099038327,-200.0,0.00023231,2]
[336752869,1725099038336,-516.96,0.00023261,2]
[336752871,1725099038345,-604.01,0.00023335,2]
[336752873,1725099038355,-800.0,0.00023341,2]
[336752875,1725099038363,-152.0,0.00023422,3]
[336752877,1725099038372,-1003.24,0.0002345,2]
[336752879,1725099038382,-158.33,0.00023562,2]
[336752881,1725099038390,-182.65,0.00023582,2]
[336752882,1725099038399,-400.0,0.00023589,2]
[336752884,1725099038408,-150.15,0.0002381,2]
[336752886,1725099038417,-167.0,0.0002387,2]
[336752888,1725099038427,-500.0,0.000239,8]
[336752890,1725099038436,-500.0,0.00024,11]
[336752892,1725099038444,-500.0,0.00024,11]
[336752894,1725099038455,-1000.0,0.00024,8]
[336752896,1725099038464,-1500.0,0.000241,8]
[336752898,1725099038473,-1205.0,0.000241,2]
[336752899,1725099038483,-152.0,0.00024163,4]
[336752901,1725099038492,-2000.0,0.000242,8]
[336752903,1725099038501,-2600.0,0.000243,8]
[336752905,1725099038511,-257.7,0.00024398,2]
[336752907,1725099038520,-500.0,0.000244,8]
[336752909,1725099038530,-500.0,0.000245,8]
[336752911,1725099038540,-500.0,0.000246,8]
[336752913,1725099038549,-1003.24,0.00024675,2]
[336752915,1725099038559,-500.0,0.000247,9]
[336752917,1725099038568,-150.0,0.00024776,2]
[336752919,1725099038578,-150.0,0.00024793,2]
[336752921,1725099038587,-811.0,0.000248,9]
[336752923,1725099038596,-252.323007,0.00024817,2]
[336752925,1725099038605,-150.39,0.00024854,2]
[336752926,1725099038614,-150.15,0.0002486,2]
[336752928,1725099038623,-150.0,0.00024888,2]
[336752930,1725099038633,-795.5564,0.0002489,2]
[336752932,1725099038642,-493.199,0.0002489,2]
[336752934,1725099038653,-251.959,0.0002489,2]
[336752936,1725099038662,-450.39993403,0.0002489,2]
[336752938,1725099038671,-195.51992312,0.00024891,2]
[336752940,1725099038681,-450.39993395,0.00024891,2]
[336752942,1725099038690,-450.39993395,0.00024892,2]
[336752944,1725099038699,-195.51992305,0.00024892,2]
[336752946,1725099038709,-450.39993395,0.00024893,2]
[336752948,1725099038719,-195.51992305,0.00024894,2]
[336752950,1725099038728,-450.39993395,0.00024894,2]
[336752952,1725099038737,-195.51992305,0.00024895,2]
[336752954,1725099038746,-450.39993395,0.00024896,2]
[336752956,1725099038755,-195.51992305,0.00024896,2]
[336752958,1725099038765,-450.39993395,0.00024897,2]
[336752960,1725099038774,-450.39993395,0.00024898,2]
[336752962,1725099038783,-450.39993395,0.00024899,2]
[336752964,1725099038792,-403.1697,0.000249,2]
[336752966,1725099038801,-643.2345,0.000249,2]
[336752968,1725099038811,-172.70431108,0.000249,2]
[336752970,1725099038820,-261.5692,0.000249,2]
[336752972,1725099038829,-450.39993395,0.000249,2]
[336752973,1725099038838,-1540.43700174,0.000249,2]
[336752975,1725099038847,-4099.82701308,0.000249,2]
[336752977,1725099038856,-2728.35195085,0.000249,2]
[336752979,1725099038866,-13175.94235145,0.000249,2]
[336752982,1725099038882,-410.82807031,0.000249,2]
[336752984,1725099038896,-98.86467224,0.000249,2]
[336752986,1725099038905,-152.0,0.00024905,5]
[336752988,1725099038914,-78.60349797,0.00024964,2]
[336752990,1725099038929,-71.39650203,0.00024964,2]
[336752992,1725099038938,-159.19924242,0.00024973,2]
[336752994,1725099038947,-157.0933836,0.00024973,2]
[336752996,1725099038957,-260.54500099,0.00024989,61]
[336752998,1725099038966,-183.07787699,0.0002499,5]
[336753000,1725099038978,-4124.44192995,0.0002499,5]
[336753002,1725099038989,-1879.79073718,0.0002499,5]
[336753004,1725099039001,-5000.0,0.0002499,5]
[336753008,1725099039025,-19584.17613878,0.0002499,5]
[336753018,1725099040163,-799.10202152,0.0002499,5]
[336753080,1725099045991,-229.7657122,0.00024195,2]
[336755041,1725099282007,155.73,0.00010959,2]
[336755642,1725099625115,2000.0,0.00022906,120]
[336755644,1725099821323,17.08,0.00010959,2]
[336755645,1725099821351,176.45,0.00010959,2]
[336755655,1725100180309,600.0,0.0001045,2]
[336755656,1725100180938,606.95052246,0.00010424,2]
[336755658,1725100231838,-177888.59520922,0.00011,2]
[336755659,1725100231857,-1072.92778133,0.00011,2]
[336755664,1725100231946,-15372.11072017,0.00011,2]
[336755665,1725100231958,-2965.35135302,0.00011,2]
[336755666,1725100231971,-476.25176367,0.00011,2]
[336755667,1725100231984,-77142.91238869,0.00011,2]
[336755668,1725100231995,-348.26422483,0.00011,2]
[336755669,1725100232019,-442.78390852,0.00011,2]
[336755670,1725100232030,-5323.78607313,0.00011,2]
[336755671,1725100232060,-660.81574573,0.00011,2]
[336755672,1725100232072,-5189.9611931,0.00011,2]
[336755676,1725100238098,-441.66001173,0.00011,2]
[336755677,1725100238182,-1839.93992941,0.00011,2]
[336755678,1725100238194,-384.30158449,0.00011,2]
[336755679,1725100238207,-690.57423832,0.00011,2]
[336755680,1725100238282,-1089.05208853,0.00011,2]
[336755825,1725100240109,-389.44550813,0.00011,2]
[336755835,1725100240197,-193618.13063789,0.00011,2]
[336755851,1725100240351,-83508.93080191,0.00011,2]
[336755853,1725100240363,-282969.46996096,0.00011,2]
[336755855,1725100240374,-1236.52562616,0.00011887,2]
[336755857,1725100240384,-1186.59994827,0.00011987,2]
[336755859,1725100240395,-1236.52562611,0.00013333,2]
[336755862,1725100240406,-1236.52562611,0.00014779,2]
[336755864,1725100240417,-1236.52562611,0.00016225,2]
[336755866,1725100240428,-1236.52562611,0.00017671,2]
[336755868,1725100240438,-4627.0,0.000183,2]
[336755870,1725100240448,-1236.52562611,0.00019116,2]
[336755872,1725100240457,-3729.539999,0.0002,2]
[336755874,1725100240467,-11502.43285744,0.0002,7]
[336755876,1725100240476,-150.39,0.00020398,2]
[336755878,1725100240485,-1236.52562611,0.00020562,2]
[336755880,1725100240496,-995.36,0.00021,2]
[336755882,1725100240505,-150.000003,0.00021,2]
[336755884,1725100240515,-524.91,0.00021025,2]
[336755886,1725100240526,-552.0,0.00021417,2]
[336755888,1725100240535,-1898.0,0.00021417,2]
[336755890,1725100240544,-804.0,0.00021417,2]
[336755891,1725100240553,-1143.0,0.00021417,2]
[336755893,1725100240564,-1305.24,0.00021417,2]
[336755895,1725100240573,-499.99,0.00021417,2]
[336755897,1725100240582,-1259.0,0.00021417,2]
[336755899,1725100240593,-3728.0,0.00021417,2]
[336755901,1725100240603,-5856.885,0.00021417,2]
[336755903,1725100240612,-13452.0,0.00021417,2]
[336755905,1725100240621,-447.0,0.00021417,2]
[336755907,1725100240633,-930.0,0.00021417,2]
[336755909,1725100240643,-161.42,0.0002196,30]
[336755911,1725100240653,-745.18427849,0.00022,7]
[336755913,1725100240663,-1236.52562611,0.00022008,2]
[336755916,1725100240673,-995.36,0.00022075,2]
[336755918,1725100240686,-200.0,0.00022489,2]
[336755920,1725100240696,-250.0,0.00022861,2]
[336755922,1725100240705,-150.0,0.00023,2]
[336755924,1725100240716,-150.15,0.00023001,2]
[336755926,1725100240725,-155.86,0.00023066,2]
[336755928,1725100240734,-250.0,0.00023081,2]
[336755930,1725100240743,-250.0,0.00023133,2]
[336755932,1725100240753,-2751.0,0.00023145,2]
[336755934,1725100240764,-604.0,0.00023147,2]
[336755954,1725100240941,-995.36,0.0002315,2]
[336755957,1725100240954,-563.46,0.00023171,2]
[336755959,1725100240963,-1000.0,0.00023225,2]
[336755961,1725100240980,-524.91,0.00023289,2]
[336755963,1725100240990,-4898.61005166,0.000233,2]
[336755965,1725100240999,-1236.52562611,0.00023454,2]
[336755967,1725100241008,-167.0,0.00023779,2]
[336755968,1725100241017,-503.34,0.00023838,2]
[336755970,1725100241027,-180.0,0.00023877,2]
[336755972,1725100241037,-257.7,0.00024048,2]
[336755974,1725100241046,-499.999999,0.000241,2]
[336755976,1725100241055,-1493.959325,0.00024225,2]
[336755977,1725100241064,-150.15,0.0002446,2]
[336755979,1725100241075,-2954.27632313,0.000247,2]
[336755981,1725100241084,-232.76974054,0.000247,2]
[336755983,1725100241094,-1628.06622876,0.0002475,2]
[336755985,1725100241104,-150.56267527,0.00024757,2]
[336755988,1725100241113,-167.28,0.00024769,2]
[336755990,1725100241122,-150.0,0.00024796,2]
[336755992,1725100241132,-300.0,0.0002485,2]
[336755994,1725100241141,-195.51992305,0.00024899,2]
[336755996,1725100241150,-195.51992305,0.000249,2]
[336755998,1725100241159,-131531.8083,0.000249,2]
[336755999,1725100241168,-2603.5231,0.000249,2]
[336756001,1725100241177,-195.51992305,0.000249,2]
[336756003,1725100241187,-261.5692,0.000249,2]
[336756005,1725100241196,-15162.14621556,0.000249,2]
[336756007,1725100241205,-559.31564704,0.000249,2]
[336756009,1725100241215,-1236.52562611,0.000249,2]
[336756011,1725100241227,-15267.79889485,0.0002492,4]
[336756013,1725100241236,-600.0,0.0002494,2]
[336756015,1725100241245,-1690.42306,0.00024973,2]
[336756017,1725100241255,-150.0,0.00024986,2]
[336756019,1725100241263,-19996.66883741,0.0002499,5]
[336756021,1725100241279,-2651.19420898,0.0002499,5]
[336756024,1725100241290,-3323.55802216,0.0002499,5]
[336756306,1725100244145,-348.82599169,0.00021417,2]
[336756456,1725100246024,-461.17400831,0.00021417,2]
[336756458,1725100246035,-15.60136731,0.00021417,2]
[336756460,1725100246047,-541.39863269,0.00021417,2]
[336756462,1725100246058,-1720.58504886,0.0002499,5]
[336756465,1725100246069,-6139.10364174,0.0002499,5]
[336756467,1725100246081,-578.81288285,0.0002499,5]
[336756469,1725100246097,-2670.35171562,0.0002499,5]
[336756478,1725100246171,-21575.24610539,0.0002499,5]
[336756481,1725100246188,-2137.90186013,0.0002499,5]
[336756491,1725100246278,-4640.30705382,0.0002499,5]
[336757832,1725100297147,500.0,0.00022,60]
[336757835,1725101039961,158.07,0.00010959,2]
[336757837,1725101275108,1000.0,0.00024,120]
[336757838,1725101430301,900000.0,0.0001095,2]
[336757840,1725101432125,-250.0,0.00014,2]
[336757841,1725101432135,-300.0,0.00016,2]
[336757842,1725101432144,-80.72485742,0.00018,2]
[336757843,1725101432159,-269.27514258,0.00018,2]
[336757844,1725101432168,-223.06903552,0.0002,2]
[336757845,1725101432247,-176.93096448,0.0002,2]
[336757846,1725101432256,-150.39,0.00020384,2]
[336757847,1725101432266,-287.189953,0.00021,2]
[336757848,1725101432276,-575.19,0.00021177,2]
[336757849,1725101432285,-499.99,0.00021411,2]
[336757850,1725101432295,-150.0,0.00021863,2]
[336757851,1725101432304,-1405.46036054,0.00022,20]
[336757852,1725101432314,-3000.0,0.000222,2]
[336757854,1725101432323,-1000.0,0.00022748,2]
[336757856,1725101432333,-1000.0,0.00022748,2]
[336757858,1725101432343,-1000.0,0.00022748,2]
[336757860,1725101432353,-1000.0,0.00022748,2]
[336757861,1725101432362,-1039.44,0.00022748,2]
[336757862,1725101432371,-150.0,0.00022815,2]
[336757863,1725101432381,-1545.0,0.00022816,2]
[336757864,1725101432390,-623.0,0.00022816,2]
[336757865,1725101432399,-800.78399598,0.00022816,2]
[336757866,1725101432411,-227.29500402,0.00022816,2]
[336757867,1725101432421,-80.76934947,0.00022816,2]
[336757868,1725101432433,-316.17565053,0.00022816,2]
[336757869,1725101432443,-150.15,0.00022952,2]
[336757870,1725101432452,-150.0,0.00023,2]
[336757871,1725101432461,-281.73,0.00023072,2]
[336757872,1725101432470,-250.0,0.00023103,2]
[336757873,1725101432479,-250.0,0.00023111,2]
[336757874,1725101432488,-744.93,0.00023121,2]
[336757876,1725101432497,-500.97,0.00023129,2]
[336757878,1725101432506,-200.0,0.00023131,2]
[336757879,1725101432515,-293.97914947,0.00023133,2]
[336757882,1725101432530,-706.02085053,0.00023133,2]
[336757884,1725101432539,-250.0,0.00023133,2]
[336757885,1725101432548,-276.5,0.00023136,30]
[336757887,1725101432557,-180.0,0.00023199,2]
[336757888,1725101432566,-2751.0,0.00023215,2]
[336757889,1725101432575,-1001.0,0.000233,2]
[336757890,1725101432584,-1000.0,0.00023364,2]
[336757891,1725101432593,-575.19,0.00023441,2]
[336757892,1725101432602,-152.0,0.00023496,3]
[336757894,1725101432611,-292.0,0.0002371,2]
[336757896,1725101432621,-419.45,0.00023788,2]
[336757897,1725101432631,-1200.0,0.000239,8]
[336757898,1725101432640,-2400.0,0.00024,8]
[336757899,1725101432649,-3600.0,0.000241,8]
[336757900,1725101432658,-181.083119,0.00024198,8]
[336757901,1725101432668,-181.083119,0.00024198,6]
[336757902,1725101432677,-181.083119,0.00024198,5]
[336757903,1725101432687,-181.083119,0.00024198,4]
[336757904,1725101432696,-4900.0,0.000242,8]
[336757905,1725101432705,-181.083119,0.00024298,3]
[336757906,1725101432714,-181.083119,0.00024298,4]
[336757907,1725101432723,-181.083119,0.00024298,5]
[336757908,1725101432733,-181.083119,0.00024298,6]
[336757909,1725101432742,-181.083119,0.00024298,8]
[336757910,1725101432750,-6100.0,0.000243,8]
[336757911,1725101432759,-152.0,0.00024312,4]
[336757912,1725101432769,-181.083119,0.00024398,8]
[336757913,1725101432778,-181.083119,0.00024398,6]
[336757914,1725101432787,-181.083119,0.00024398,5]
[336757915,1725101432796,-181.083119,0.00024398,4]
[336757916,1725101432807,-181.083119,0.00024398,3]
[336757917,1725101432816,-1200.0,0.000244,8]
[336757918,1725101432825,-181.083119,0.00024498,3]
[336757919,1725101432835,-181.083119,0.00024498,4]
[336757920,1725101432844,-181.083119,0.00024498,5]
[336757921,1725101432853,-181.083119,0.00024498,6]
[336757922,1725101432862,-181.083119,0.00024498,8]
[336757923,1725101432871,-1200.0,0.000245,8]
[336757924,1725101432881,-150.0,0.00024585,2]
[336757925,1725101432890,-1000.0,0.000246,2]
[336757926,1725101432899,-1200.0,0.000246,8]
[336757927,1725101432909,-1200.0,0.000247,9]
[336757928,1725101432918,-150.0,0.00024734,2]
[336757929,1725101432927,-1468.68363,0.0002474,2]
[336757930,1725101432937,-150.0,0.00024797,2]
[336757931,1725101432949,-150.0,0.00024798,2]
[336757932,1725101432958,-1500.0,0.000248,9]
[336757933,1725101432967,-150.0,0.00024883,2]
[336757934,1725101432976,-1796.3475,0.0002489,2]
[336757935,1725101432986,-60871.5334,0.0002489,2]
[336757936,1725101432995,-606.13804089,0.0002489,2]
[336757937,1725101433004,-150.47985208,0.0002489,2]
[336757938,1725101433013,-306.60278461,0.0002489,2]
[336757939,1725101433023,-2681.87,0.0002489,2]
[336757940,1725101433032,-606.13804084,0.00024891,2]
[336757941,1725101433041,-606.13804084,0.00024892,2]
[336757942,1725101433051,-606.13804084,0.00024893,2]
[336757943,1725101433060,-150.47985205,0.00024893,2]
[336757944,1725101433069,-150.15,0.00024894,2]
[336757945,1725101433079,-606.13804084,0.00024894,2]
[336757946,1725101433088,-606.13804084,0.00024896,2]
[336757947,1725101433097,-606.13804084,0.00024897,2]
[336757948,1725101433106,-150.47985205,0.00024897,2]
[336757949,1725101433116,-606.13804084,0.00024898,2]
[336757950,1725101433125,-606.13804084,0.00024899,2]
[336757951,1725101433134,-24099.634,0.000249,2]
[336757952,1725101433144,-2000.0,0.000249,2]
[336757953,1725101433154,-3000.0,0.000249,2]
[336757954,1725101433165,-164.14081489,0.000249,2]
[336757955,1725101433174,-261.5692,0.000249,2]
[336757956,1725101433184,-606.13804084,0.000249,2]
[336757957,1725101433193,-332.72750831,0.000249,2]
[336757958,1725101433202,-150.47985205,0.000249,2]
[336757959,1725101433212,-256.3785692,0.000249,2]
[336757960,1725101433221,-230.13121913,0.00024927,2]
[336757961,1725101433231,-600.0,0.00024945,2]
[336757962,1725101433241,-158.07,0.00024962,2]
[336757963,1725101433369,-500.0,0.00024963,2]
[336757964,1725101433379,-158.51422821,0.00024973,2]
[336757965,1725101433388,-160.095168,0.00024973,2]
[336757966,1725101433397,-13691.68805994,0.0002499,5]
[336757970,1725101438276,-1362.14790047,0.0002499,5]
[336757971,1725101438306,-1319.03457523,0.0002499,5]
[336757972,1725101438334,-3163.29177813,0.0002499,5]
[336757973,1725101438363,-669.62499999,0.0002499,5]
[336757974,1725101438390,-62207.98483711,0.0002499,5]
[336757975,1725101438403,-1599.21665465,0.0002499,5]
[336757976,1725101438414,-534.58199716,0.0002499,5]
[336757977,1725101438430,-1439.35583078,0.0002499,5]
[336757978,1725101438447,-316.97206684,0.0002499,5]
[336757979,1725101438638,-1815.69636537,0.0002499,5]
[336757980,1725101438650,-570.23685725,0.0002499,5]
[336757981,1725101438675,-2209.13973896,0.0002499,5]
[336757982,1725101438686,-784.69067027,0.0002499,5]
[336757983,1725101438698,-960.12621393,0.0002499,5]
[336757984,1725101438709,-1367.09346379,0.0002499,5]
[336757985,1725101438719,-1751.89351682,0.0002499,5]
[336757987,1725101440120,-557.38108761,0.0002499,5]
[336757989,1725101440265,-670.37,0.0002499,5]
[336757990,1725101440384,-145947.8726017,0.0002499,5]
[336757991,1725101440394,-1000.0,0.0002499,2]
[336757992,1725101440405,-1000.0,0.0002499,2]
[336757993,1725101440416,-1000.0,0.0002499,2]
[336757994,1725101440425,-1000.0,0.0002499,2]
[336757995,1725101440434,-1000.0,0.0002499,2]
[336757996,1725101440443,-1000.0,0.0002499,2]
[336757997,1725101440452,-1000.0,0.0002499,2]
[336757998,1725101440461,-1000.0,0.0002499,2]
[336757999,1725101440471,-1000.0,0.0002499,2]
[336758000,1725101440479,-1000.0,0.0002499,2]
[336758001,1725101440489,-1000.0,0.0002499,2]
[336758002,1725101440499,-1000.0,0.0002499,2]
[336758003,1725101440508,-1000.0,0.0002499,2]
[336758004,1725101440517,-1000.0,0.0002499,2]
[336758005,1725101440529,-1000.0,0.0002499,2]
[336758006,1725101440539,-1000.0,0.0002499,2]
[336758007,1725101440548,-1000.0,0.0002499,2]
[336758008,1725101440558,-1000.0,0.0002499,2]
[336758009,1725101440568,-1000.0,0.0002499,2]
[336758010,1725101440579,-1000.0,0.0002499,2]
[336758011,1725101440589,-300.0,0.00024995,5]
[336758012,1725101440599,-244.96443001,0.00024997,2]
[336758013,1725101440609,-504.0,0.00024999,2]
[336758014,1725101440620,-5718.94809142,0.00025,2]
[336758015,1725101440629,-62261.70630814,0.00025,15]
[336758016,1725101440664,-151209.87742418,0.00025,15]
[336758017,1725101440676,-87108.1858664,0.00025,15]
[336758018,1725101440687,-237374.64868967,0.00025,15]
[336758019,1725101440700,-887.46,0.00025,15]
[336758076,1725101444555,-449.1405,0.0002489,2]
[336758077,1725101444564,-13351.16602,0.00025,15]
[336758080,1725101446224,-5078.70888371,0.0002489,2]
[336758154,1725101743830,168.86,0.00010959,2]
[336758156,1725102228994,157.35,0.00010959,2]
[336758163,1725102632218,-152.03,0.00011,2]
[336758164,1725102632227,-250.0,0.00014,2]
[336758165,1725102632236,-39.90854479,0.00016,2]
[336758166,1725102632284,-260.09145521,0.00016,2]
[336758168,1725102632294,-931.0,0.000176,2]
[336758171,1725102632305,-350.0,0.00018,2]
[336758173,1725102632316,-336.11387479,0.000187,7]
[336758177,1725102632359,-18.63612521,0.000187,7]
[336758178,1725102632370,-431.36387479,0.00019726,2]
[336758179,1725102632560,-1151.55012815,0.00019726,2]
[336758180,1725102632572,-1007.07587274,0.00019726,2]
[336758181,1725102632583,-238.63012432,0.00019726,2]
[336758182,1725102632592,-404.62251805,0.00019726,2]
[336758183,1725102632603,-95.36748195,0.00019726,2]
[336758184,1725102632612,-150.39,0.00019848,2]
[336758185,1725102632621,-150.99,0.00019848,2]
[336758186,1725102632631,-400.0,0.0002,2]
[336758187,1725102632640,-618.53,0.00020571,2]
[336758188,1725102632649,-1713.14781805,0.00021,2]
[336758189,1725102632661,-263.34608995,0.00021,2]
[336758190,1725102632670,-150.15,0.00022439,2]
[336758191,1725102632678,-150.0,0.00022488,2]
[336758192,1725102632688,-1500.0,0.000225,2]
[336758194,1725102632697,-273.19,0.00022507,2]
[336758196,1725102632706,-1994.19,0.00022519,62]
[336758198,1725102632715,-160.09,0.00022566,2]
[336758200,1725102632724,-250.0,0.00022574,2]
[336758202,1725102632733,-200.0,0.00022588,2]
[336758203,1725102632742,-800.0,0.00022597,2]
[336758204,1725102632751,-200.0,0.00022606,2]
[336758205,1725102632759,-398.94,0.00022651,2]
[336758206,1725102632768,-662.1,0.00022747,2]
[336758207,1725102632777,-150.0,0.00022757,2]
[336758208,1725102632786,-618.53,0.00022835,2]
[336758209,1725102632795,-250.0,0.00022914,2]
[336758210,1725102632804,-278.77,0.00022933,30]
[336758211,1725102632813,-2100.33467469,0.0002296,2]
[336758212,1725102632824,-650.66532531,0.0002296,2]
[336758213,1725102632834,-2326.96701388,0.00022963,2]
[336758214,1725102632844,-791.24822385,0.00022963,2]
[336758215,1725102638479,-6082.39880002,0.00022963,2]
[336758216,1725102638724,-2188.34596225,0.00022963,2]
[336758217,1725102638734,-1000.0,0.00022964,2]
[336758218,1725102638743,-150.0,0.00023,2]
[336758219,1725102638753,-160.047264,0.00023,2]
[336758220,1725102638762,-200.0,0.00023,2]
[336758221,1725102638772,-620.77,0.00023035,2]
[336758222,1725102638781,-250.0,0.00023076,2]
[336758223,1725102638790,-328.0,0.00023135,2]
[336758224,1725102638799,-200.0,0.00023138,2]
[336758225,1725102638809,-179.72,0.0002322,2]
[336758226,1725102638818,-163.27,0.00023415,2]
[336758227,1725102638827,-167.0,0.00023619,2]
[336758228,1725102638837,-304.07,0.000238,14]
[336758229,1725102638846,-1300.0,0.000239,8]
[336758230,1725102638855,-2700.0,0.00024,8]
[336758231,1725102638865,-4100.0,0.000241,8]
[336758232,1725102638875,-5400.0,0.000242,8]
[336758233,1725102638884,-6800.0,0.000243,8]
[336758234,1725102638893,-150.0,0.00024333,2]
[336758235,1725102638902,-1300.0,0.000244,8]
[336758236,1725102638911,-1000.0,0.000244,2]
[336758237,1725102638921,-150.0,0.00024498,5]
[336758238,1725102638930,-150.0,0.00024498,6]
[336758239,1725102638939,-150.0,0.00024498,8]
[336758240,1725102638949,-1000.0,0.000245,20]
[336758241,1725102638958,-1000.0,0.000245,20]
[336758242,1725102638968,-112.77677372,0.000245,8]
[336758248,1725102640501,-1187.22322628,0.000245,8]
[336758249,1725102640511,-1300.0,0.000246,8]
[336758250,1725102640522,-1300.0,0.000247,9]
[336758251,1725102640531,-167.04,0.00024793,2]
[336758252,1725102640541,-1007.0,0.000248,20]
[336758253,1725102640552,-1900.0,0.000248,9]
[336758254,1725102640562,-180.0,0.0002481,2]
[336758255,1725102640573,-1110.37603157,0.0002487,2]
[336758256,1725102640582,-5000.0,0.0002488,32]
[336758257,1725102640593,-50919.97311629,0.0002489,2]
[336758258,1725102640602,-500.0,0.000249,2]
[336758259,1725102640611,-3514.6025,0.000249,2]
[336758260,1725102640620,-1548.6665,0.000249,2]